[Event "Titled Tuesday Blitz December 13 Early 2022"]
[White "Pein, Jonathan"]
[Black "Ovchinnikov, Vsevolod"]
[WhiteFideId "417092"]
[BlackFideId "24176842"]
[WhiteElo "2225"]
[BlackElo "2376"]
[Result "1/2-1/2"]
[Round "07"]
[TimeControl "180+1"]
[Date "2022.12.14"]
[WhiteClock "0:00:42"]
[BlackClock "0:00:23"]

1. Nf3 {[%clk 0:03:00]}  Nf6 {[%clk 0:02:59]} 2. g3 {[%clk 0:03:00]}  g6 {[%clk 0:03:00]} 3. Bg2 {[%clk 0:03:01]}  d5 {[%clk 0:03:00]} 4. O-O {[%clk 0:03:02]}  Bg7 {[%clk 0:03:01]} 5. d3 {[%clk 0:03:01]}  O-O {[%clk 0:03:01]} 6. c3 {[%clk 0:03:02]}  b6 {[%clk 0:03:02]} 7. a4 {[%clk 0:03:02]}  Bb7 {[%clk 0:03:00]} 8. a5 {[%clk 0:03:01]}  c5 {[%clk 0:03:00]} 9. axb6 {[%clk 0:03:00]}  axb6 {[%clk 0:03:00]} 10. Rxa8 {[%clk 0:03:01]}  Bxa8 {[%clk 0:03:01]} 11. Bg5 {[%clk 0:03:02]}  Nbd7 {[%clk 0:03:00]} 12. e3 {[%clk 0:03:01]}  e5 {[%clk 0:02:57]} 13. d4 {[%clk 0:03:01]}  e4 {[%clk 0:02:55]} 14. Ne5 {[%clk 0:03:01]}  h6 {[%clk 0:02:54]} 15. Nxd7 {[%clk 0:02:56]}  Qxd7 {[%clk 0:02:53]} 16. Bxf6 {[%clk 0:02:54]}  Bxf6 {[%clk 0:02:54]} 17. dxc5 {[%clk 0:02:54]}  bxc5 {[%clk 0:02:54]} 18. Bxe4 {[%clk 0:02:55]}  Rb8 {[%clk 0:02:24]} 19. Bg2 {[%clk 0:02:39]}  Rxb2 {[%clk 0:02:18]} 20. c4 {[%clk 0:02:40]}  Rb6 {[%clk 0:01:59]} 21. cxd5 {[%clk 0:02:38]}  Rd6 {[%clk 0:01:58]} 22. e4 {[%clk 0:02:38]}  Rb6 {[%clk 0:01:50]} 23. Nd2 {[%clk 0:02:38]}  Bb7 {[%clk 0:01:36]} 24. Nf3 {[%clk 0:02:35]}  Rb4 {[%clk 0:01:21]} 25. e5 {[%clk 0:02:34]}  Bg7 {[%clk 0:01:21]} 26. d6 {[%clk 0:02:26]}  Bxf3 {[%clk 0:01:17]} 27. Qxf3 {[%clk 0:02:21]}  Bxe5 {[%clk 0:01:17]} 28. Rd1 {[%clk 0:02:13]}  Rd4 {[%clk 0:01:15]} 29. Rxd4 {[%clk 0:01:30]}  cxd4 {[%clk 0:01:15]} 30. Qa8+ {[%clk 0:01:29]}  Kg7 {[%clk 0:01:14]} 31. Qd5 {[%clk 0:01:18]}  Qxd6 {[%clk 0:01:14]} 32. Qxd6 {[%clk 0:01:18]}  Bxd6 {[%clk 0:01:15]} 33. f4 {[%clk 0:01:16]}  d3 {[%clk 0:01:04]} 34. Kf1 {[%clk 0:01:11]}  Bc5 {[%clk 0:00:56]} 35. Be4 {[%clk 0:01:10]}  d2 {[%clk 0:00:54]} 36. Bc2 {[%clk 0:01:03]}  Kf6 {[%clk 0:00:50]} 37. Ke2 {[%clk 0:01:02]}  Bb4 {[%clk 0:00:50]} 38. Ke3 {[%clk 0:00:59]}  g5 {[%clk 0:00:46]} 39. fxg5+ {[%clk 0:00:58]}  Kxg5 {[%clk 0:00:45]} 40. Kf3 {[%clk 0:00:54]}  Kf6 {[%clk 0:00:39]} 41. Kf4 {[%clk 0:00:50]}  Bd6+ {[%clk 0:00:38]} 42. Ke3 {[%clk 0:00:51]}  Bb4 {[%clk 0:00:38]} 43. Kf4 {[%clk 0:00:51]}  Ba5 {[%clk 0:00:39]} 44. h4 {[%clk 0:00:46]}  Bc7+ {[%clk 0:00:39]} 45. Kf3 {[%clk 0:00:46]}  Ke5 {[%clk 0:00:36]} 46. g4 {[%clk 0:00:46]}  f6 {[%clk 0:00:34]} 47. h5 {[%clk 0:00:40]}  Kd4 {[%clk 0:00:31]} 48. Ke2 {[%clk 0:00:40]}  Bf4 {[%clk 0:00:29]} 49. Kd1 {[%clk 0:00:38]}  Ke3 {[%clk 0:00:27]} 50. Bf5 {[%clk 0:00:39]}  Bg5 {[%clk 0:00:26]} 51. Bc8 {[%clk 0:00:39]}  Kf3 {[%clk 0:00:25]} 52. Bf5 {[%clk 0:00:40]}  Kf2 {[%clk 0:00:25]} 53. Bc8 {[%clk 0:00:40]}  Kf3 {[%clk 0:00:23]} 54. Bf5 {[%clk 0:00:41]}  Kf2 {[%clk 0:00:23]} 55. Bc8 {[%clk 0:00:42]}  Kf3 {[%clk 0:00:23]} 1/2-1/2


[Site "https://www.chess.com"]

[Event "Titled Tuesday Blitz December 13 Early 2022"]
[White "Perez Rodriguez, Jennifer"]
[Black "Mendez Fortes, Eduardo Jesus"]
[WhiteFideId "3507831"]
[BlackFideId "3502376"]
[WhiteElo "2170"]
[BlackElo "2307"]
[Result "0-1"]
[Round "07"]
[TimeControl "180+1"]
[Date "2022.12.14"]
[WhiteClock "0:00:01"]
[BlackClock "0:01:22"]

1. e4 {[%clk 0:03:00]}  e5 {[%clk 0:02:59]} 2. Bc4 {[%clk 0:02:59]}  Nf6 {[%clk 0:02:59]} 3. Nc3 {[%clk 0:02:58]}  Nxe4 {[%clk 0:02:59]} 4. Qh5 {[%clk 0:02:57]}  Nd6 {[%clk 0:02:59]} 5. Qxe5+ {[%clk 0:02:56]}  Qe7 {[%clk 0:02:59]} 6. Qxe7+ {[%clk 0:02:57]}  Bxe7 {[%clk 0:03:00]} 7. Bb3 {[%clk 0:02:56]}  Nc6 {[%clk 0:03:00]} 8. Nf3 {[%clk 0:02:56]}  Na5 {[%clk 0:02:59]} 9. Nd5 {[%clk 0:02:55]}  Bd8 {[%clk 0:02:59]} 10. O-O {[%clk 0:02:51]}  Nxb3 {[%clk 0:02:59]} 11. Re1+ {[%clk 0:02:51]}  Kf8 {[%clk 0:02:59]} 12. axb3 {[%clk 0:02:51]}  c6 {[%clk 0:02:59]} 13. Nc3 {[%clk 0:02:46]}  Nf5 {[%clk 0:02:59]} 14. d4 {[%clk 0:02:45]}  d5 {[%clk 0:02:59]} 15. b4 {[%clk 0:02:43]}  Bf6 {[%clk 0:02:59]} 16. Be3 {[%clk 0:02:31]}  Nxe3 {[%clk 0:02:59]} 17. fxe3 {[%clk 0:02:32]}  Bf5 {[%clk 0:02:58]} 18. b5 {[%clk 0:02:30]}  Bxc2 {[%clk 0:02:37]} 19. bxc6 {[%clk 0:02:28]}  bxc6 {[%clk 0:02:38]} 20. Ra6 {[%clk 0:02:28]}  Rc8 {[%clk 0:02:29]} 21. Rxa7 {[%clk 0:02:26]}  g6 {[%clk 0:02:26]} 22. Rc1 {[%clk 0:02:24]}  Bf5 {[%clk 0:02:26]} 23. b4 {[%clk 0:01:59]}  Kg7 {[%clk 0:02:22]} 24. Na4 {[%clk 0:01:35]}  Rhe8 {[%clk 0:02:21]} 25. Kf2 {[%clk 0:01:34]}  Rb8 {[%clk 0:02:12]} 26. Rxc6 {[%clk 0:01:28]}  Rxb4 {[%clk 0:02:11]} 27. Rcc7 {[%clk 0:01:26]}  Rf8 {[%clk 0:02:10]} 28. Nc5 {[%clk 0:01:22]}  Rb2+ {[%clk 0:02:02]} 29. Kg3 {[%clk 0:01:21]}  Bd8 {[%clk 0:02:02]} 30. Rcb7 {[%clk 0:00:59]}  Rxb7 {[%clk 0:02:01]} 31. Rxb7 {[%clk 0:00:59]}  Bf6 {[%clk 0:01:51]} 32. Nd7 {[%clk 0:00:50]}  Re8 {[%clk 0:01:45]} 33. Nde5 {[%clk 0:00:44]}  Be6 {[%clk 0:01:42]} 34. h3 {[%clk 0:00:38]}  Ra8 {[%clk 0:01:38]} 35. Rb5 {[%clk 0:00:37]}  Ra3 {[%clk 0:01:38]} 36. Kf2 {[%clk 0:00:30]}  h5 {[%clk 0:01:37]} 37. h4 {[%clk 0:00:24]}  Ra2+ {[%clk 0:01:34]} 38. Kg3 {[%clk 0:00:24]}  Re2 {[%clk 0:01:31]} 39. Rb3 {[%clk 0:00:23]}  Bf5 {[%clk 0:01:30]} 40. Nc6 {[%clk 0:00:18]}  Be4 {[%clk 0:01:26]} 41. Nb4 {[%clk 0:00:14]}  Be7 {[%clk 0:01:24]} 42. Na6 {[%clk 0:00:09]}  Bd6+ {[%clk 0:01:22]} 43. Kh3 {[%clk 0:00:03]}  Bf5+ {[%clk 0:01:21]} 44. g4 {[%clk 0:00:01]}  hxg4# {[%clk 0:01:22]} 0-1


[Site "https://www.chess.com"]

[Event "Titled Tuesday Blitz December 13 Early 2022"]
[White "Petrova, Irina"]
[Black "Javakhishvili, Lela"]
[WhiteFideId "14124122"]
[BlackFideId "13601458"]
[WhiteElo "2023"]
[BlackElo "2364"]
[Result "1/2-1/2"]
[Round "07"]
[TimeControl "180+1"]
[Date "2022.12.14"]
[WhiteClock "0:00:11"]
[BlackClock "0:00:08"]

1. e4 {[%clk 0:03:00]}  g6 {[%clk 0:02:58]} 2. d4 {[%clk 0:03:00]}  Bg7 {[%clk 0:02:58]} 3. Nc3 {[%clk 0:03:01]}  a6 {[%clk 0:02:57]} 4. Be3 {[%clk 0:03:00]}  b5 {[%clk 0:02:57]} 5. Qd2 {[%clk 0:03:00]}  Bb7 {[%clk 0:02:57]} 6. f3 {[%clk 0:02:59]}  d6 {[%clk 0:02:53]} 7. h4 {[%clk 0:02:58]}  h5 {[%clk 0:02:52]} 8. O-O-O {[%clk 0:02:58]}  b4 {[%clk 0:02:50]} 9. Nce2 {[%clk 0:02:57]}  a5 {[%clk 0:02:48]} 10. Nh3 {[%clk 0:02:53]}  Nd7 {[%clk 0:02:46]} 11. Kb1 {[%clk 0:02:46]}  Ngf6 {[%clk 0:02:37]} 12. Ng5 {[%clk 0:02:37]}  O-O {[%clk 0:02:27]} 13. Nf4 {[%clk 0:02:32]}  e5 {[%clk 0:02:24]} 14. dxe5 {[%clk 0:02:26]}  Nxe5 {[%clk 0:02:24]} 15. Nd5 {[%clk 0:02:03]}  Ba6 {[%clk 0:01:49]} 16. Bxa6 {[%clk 0:01:45]}  Rxa6 {[%clk 0:01:50]} 17. Qe2 {[%clk 0:01:44]}  Ra8 {[%clk 0:01:44]} 18. g4 {[%clk 0:01:27]}  a4 {[%clk 0:01:42]} 19. gxh5 {[%clk 0:01:21]}  Nxh5 {[%clk 0:01:41]} 20. f4 {[%clk 0:01:20]}  Nd7 {[%clk 0:01:36]} 21. Qg2 {[%clk 0:01:11]}  c6 {[%clk 0:01:35]} 22. Ne6 {[%clk 0:00:41]}  fxe6 {[%clk 0:01:29]} 23. Qxg6 {[%clk 0:00:41]}  cxd5 {[%clk 0:01:29]} 24. Qxh5 {[%clk 0:00:41]}  Qf6 {[%clk 0:01:27]} 25. Bd4 {[%clk 0:00:37]}  e5 {[%clk 0:01:27]} 26. fxe5 {[%clk 0:00:37]}  dxe5 {[%clk 0:01:27]} 27. Be3 {[%clk 0:00:35]}  Qf3 {[%clk 0:01:19]} 28. Qg5 {[%clk 0:00:27]}  Nf6 {[%clk 0:01:10]} 29. Rhg1 {[%clk 0:00:23]}  Rf7 {[%clk 0:01:08]} 30. Rdf1 {[%clk 0:00:17]}  Nxe4 {[%clk 0:01:08]} 31. Qxg7+ {[%clk 0:00:13]}  Rxg7 {[%clk 0:01:08]} 32. Rxg7+ {[%clk 0:00:13]}  Kxg7 {[%clk 0:01:09]} 33. Rxf3 {[%clk 0:00:13]}  d4 {[%clk 0:01:07]} 34. Bg5 {[%clk 0:00:13]}  Nxg5 {[%clk 0:01:04]} 35. hxg5 {[%clk 0:00:14]}  Kg6 {[%clk 0:00:51]} 36. Rg3 {[%clk 0:00:14]}  Rf8 {[%clk 0:00:49]} 37. c3 {[%clk 0:00:15]}  b3 {[%clk 0:00:45]} 38. axb3 {[%clk 0:00:15]}  axb3 {[%clk 0:00:46]} 39. Kc1 {[%clk 0:00:15]}  Rf1+ {[%clk 0:00:17]} 40. Kd2 {[%clk 0:00:15]}  Rf2+ {[%clk 0:00:17]} 41. Kd3 {[%clk 0:00:15]}  Rxb2 {[%clk 0:00:17]} 42. cxd4 {[%clk 0:00:15]}  Rh2 {[%clk 0:00:15]} 43. Rg1 {[%clk 0:00:11]}  exd4 {[%clk 0:00:11]} 44. Kxd4 {[%clk 0:00:11]}  Rc2 {[%clk 0:00:10]} 45. Rb1 {[%clk 0:00:10]}  b2 {[%clk 0:00:09]} 46. Kd3 {[%clk 0:00:09]}  Rc1 {[%clk 0:00:08]} 47. Rxb2 {[%clk 0:00:10]}  Kxg5 {[%clk 0:00:08]} 48. Rc2 {[%clk 0:00:10]}  Rxc2 {[%clk 0:00:08]} 49. Kxc2 {[%clk 0:00:11]} 1/2-1/2


[Site "https://www.chess.com"]

[Event "Titled Tuesday Blitz December 13 Early 2022"]
[White "Postnikov, Artem"]
[Black "Urazayev, Arystanbek"]
[WhiteFideId "34153575"]
[BlackFideId "13709810"]
[WhiteElo "2243"]
[BlackElo "2463"]
[Result "0-1"]
[Round "07"]
[TimeControl "180+1"]
[Date "2022.12.14"]
[WhiteClock "0:00:10"]
[BlackClock "0:02:22"]

1. d4 {[%clk 0:03:00]}  d5 {[%clk 0:02:58]} 2. c4 {[%clk 0:02:58]}  e6 {[%clk 0:02:59]} 3. Nc3 {[%clk 0:02:58]}  c5 {[%clk 0:02:59]} 4. cxd5 {[%clk 0:02:54]}  exd5 {[%clk 0:03:00]} 5. Nf3 {[%clk 0:02:54]}  Nf6 {[%clk 0:03:00]} 6. g3 {[%clk 0:02:54]}  Nc6 {[%clk 0:02:59]} 7. Bg2 {[%clk 0:02:51]}  cxd4 {[%clk 0:02:59]} 8. Nxd4 {[%clk 0:02:52]}  Bc5 {[%clk 0:03:00]} 9. Nb3 {[%clk 0:02:52]}  Bb6 {[%clk 0:03:00]} 10. O-O {[%clk 0:02:51]}  d4 {[%clk 0:03:00]} 11. Na4 {[%clk 0:02:51]}  O-O {[%clk 0:03:01]} 12. Bg5 {[%clk 0:02:48]}  h6 {[%clk 0:03:01]} 13. Bxf6 {[%clk 0:02:47]}  Qxf6 {[%clk 0:03:02]} 14. Nxb6 {[%clk 0:02:47]}  axb6 {[%clk 0:03:03]} 15. Bxc6 {[%clk 0:02:48]}  bxc6 {[%clk 0:03:04]} 16. Qxd4 {[%clk 0:02:48]}  Qd8 {[%clk 0:03:04]} 17. Qc3 {[%clk 0:02:21]}  c5 {[%clk 0:03:00]} 18. a3 {[%clk 0:02:16]}  Qe7 {[%clk 0:02:56]} 19. Rfe1 {[%clk 0:02:07]}  Bh3 {[%clk 0:02:51]} 20. Rad1 {[%clk 0:01:50]}  Rad8 {[%clk 0:02:50]} 21. Nd2 {[%clk 0:01:42]}  h5 {[%clk 0:02:38]} 22. Nf3 {[%clk 0:01:39]}  Rxd1 {[%clk 0:02:37]} 23. Rxd1 {[%clk 0:01:38]}  Qxe2 {[%clk 0:02:38]} 24. Re1 {[%clk 0:01:35]}  Qb5 {[%clk 0:02:38]} 25. Ng5 {[%clk 0:01:13]}  Bf5 {[%clk 0:02:38]} 26. Qe5 {[%clk 0:01:07]}  Bg6 {[%clk 0:02:36]} 27. Nh3 {[%clk 0:01:03]}  f6 {[%clk 0:02:33]} 28. Qc3 {[%clk 0:00:57]}  Re8 {[%clk 0:02:33]} 29. Rxe8+ {[%clk 0:00:38]}  Qxe8 {[%clk 0:02:32]} 30. Nf4 {[%clk 0:00:37]}  Bf7 {[%clk 0:02:32]} 31. h4 {[%clk 0:00:34]}  Qe4 {[%clk 0:02:30]} 32. b4 {[%clk 0:00:31]}  g5 {[%clk 0:02:29]} 33. hxg5 {[%clk 0:00:29]}  fxg5 {[%clk 0:02:30]} 34. bxc5 {[%clk 0:00:16]}  gxf4 {[%clk 0:02:29]} 35. c6 {[%clk 0:00:16]}  Bd5 {[%clk 0:02:29]} 36. f3 {[%clk 0:00:15]}  Qxf3 {[%clk 0:02:29]} 37. Qxf3 {[%clk 0:00:15]}  Bxf3 {[%clk 0:02:30]} 38. c7 {[%clk 0:00:15]}  Bb7 {[%clk 0:02:30]} 39. gxf4 {[%clk 0:00:16]}  Kf7 {[%clk 0:02:31]} 40. Kf2 {[%clk 0:00:14]}  h4 {[%clk 0:02:26]} 41. Kg1 {[%clk 0:00:11]}  Kf6 {[%clk 0:02:22]} 42. Kh2 {[%clk 0:00:12]}  Bc8 {[%clk 0:02:23]} 43. a4 {[%clk 0:00:11]}  Ke7 {[%clk 0:02:22]} 44. Kg2 {[%clk 0:00:10]}  Kd6 {[%clk 0:02:22]} 0-1


[Site "https://www.chess.com"]

[Event "Titled Tuesday Blitz December 13 Early 2022"]
[White "Putnam, Liam"]
[Black "Yilmaz, Mustafa"]
[WhiteFideId "30938279"]
[BlackFideId "6302718"]
[WhiteElo "2082"]
[BlackElo "2564"]
[Result "0-1"]
[Round "07"]
[TimeControl "180+1"]
[Date "2022.12.13"]
[WhiteClock "0:00:04"]
[BlackClock "0:00:52"]

1. e4 {[%clk 0:03:00]}  c5 {[%clk 0:02:59]} 2. Nf3 {[%clk 0:03:00]}  d6 {[%clk 0:03:00]} 3. d4 {[%clk 0:03:01]}  cxd4 {[%clk 0:03:00]} 4. Nxd4 {[%clk 0:03:02]}  Nf6 {[%clk 0:03:01]} 5. Nc3 {[%clk 0:03:02]}  a6 {[%clk 0:03:02]} 6. h4 {[%clk 0:02:39]}  e5 {[%clk 0:03:00]} 7. Nb3 {[%clk 0:02:27]}  Be7 {[%clk 0:03:01]} 8. Be2 {[%clk 0:02:24]}  Be6 {[%clk 0:02:56]} 9. g4 {[%clk 0:02:16]}  h6 {[%clk 0:02:53]} 10. Be3 {[%clk 0:02:14]}  Nc6 {[%clk 0:02:48]} 11. Rg1 {[%clk 0:02:10]}  d5 {[%clk 0:02:47]} 12. exd5 {[%clk 0:01:53]}  Nxd5 {[%clk 0:02:48]} 13. Nxd5 {[%clk 0:01:53]}  Bxd5 {[%clk 0:02:41]} 14. g5 {[%clk 0:01:51]}  hxg5 {[%clk 0:02:41]} 15. hxg5 {[%clk 0:01:52]}  Be4 {[%clk 0:02:35]} 16. Qxd8+ {[%clk 0:01:31]}  Rxd8 {[%clk 0:02:35]} 17. c3 {[%clk 0:01:32]}  Rh4 {[%clk 0:02:22]} 18. Nd2 {[%clk 0:01:17]}  Bd5 {[%clk 0:02:17]} 19. O-O-O {[%clk 0:01:16]}  b5 {[%clk 0:01:51]} 20. Kb1 {[%clk 0:01:10]}  Rd6 {[%clk 0:01:40]} 21. Nf1 {[%clk 0:00:57]}  Be4+ {[%clk 0:01:31]} 22. Kc1 {[%clk 0:00:57]}  Rxd1+ {[%clk 0:01:28]} 23. Kxd1 {[%clk 0:00:54]}  Bd5 {[%clk 0:01:25]} 24. b3 {[%clk 0:00:51]}  Nd8 {[%clk 0:01:13]} 25. Ng3 {[%clk 0:00:48]}  g6 {[%clk 0:01:13]} 26. Kc2 {[%clk 0:00:43]}  Ne6 {[%clk 0:01:13]} 27. Nf1 {[%clk 0:00:41]}  Be4+ {[%clk 0:01:09]} 28. Bd3 {[%clk 0:00:40]}  Bxd3+ {[%clk 0:01:06]} 29. Kxd3 {[%clk 0:00:41]}  Bc5 {[%clk 0:01:06]} 30. Rg3 {[%clk 0:00:32]}  Ke7 {[%clk 0:01:03]} 31. b4 {[%clk 0:00:31]}  Bxe3 {[%clk 0:01:03]} 32. Nxe3 {[%clk 0:00:32]}  Nf4+ {[%clk 0:01:01]} 33. Kd2 {[%clk 0:00:26]}  Ke6 {[%clk 0:01:02]} 34. Rg1 {[%clk 0:00:20]}  Rh5 {[%clk 0:00:58]} 35. c4 {[%clk 0:00:19]}  bxc4 {[%clk 0:00:55]} 36. Nxc4 {[%clk 0:00:20]}  Nh3 {[%clk 0:00:56]} 37. Re1 {[%clk 0:00:18]}  Rxg5 {[%clk 0:00:56]} 38. Re2 {[%clk 0:00:16]}  Nf4 {[%clk 0:00:54]} 39. Re3 {[%clk 0:00:16]}  Nd5 {[%clk 0:00:54]} 40. Rb3 {[%clk 0:00:14]}  Rg4 {[%clk 0:00:52]} 41. Kd3 {[%clk 0:00:04]}  Rd4+ {[%clk 0:00:52]} 0-1


[Site "https://www.chess.com"]

[Event "Titled Tuesday Blitz December 13 Early 2022"]
[White "Ramu, K."]
[Black "Itkis, Boris"]
[WhiteFideId "5006171"]
[BlackFideId "1209167"]
[WhiteElo "2166"]
[BlackElo "2216"]
[Result "0-1"]
[Round "07"]
[TimeControl "180+1"]
[Date "2022.12.14"]
[WhiteClock "0:00:06"]
[BlackClock "0:00:09"]

1. e4 {[%clk 0:02:58]}  c5 {[%clk 0:02:58]} 2. Nf3 {[%clk 0:02:54]}  Nc6 {[%clk 0:02:59]} 3. d3 {[%clk 0:02:50]}  g6 {[%clk 0:02:58]} 4. g3 {[%clk 0:02:50]}  Bg7 {[%clk 0:02:58]} 5. Bg2 {[%clk 0:02:51]}  e6 {[%clk 0:02:52]} 6. O-O {[%clk 0:02:52]}  Nge7 {[%clk 0:02:52]} 7. Nbd2 {[%clk 0:02:52]}  O-O {[%clk 0:02:53]} 8. Re1 {[%clk 0:02:43]}  d5 {[%clk 0:02:51]} 9. c3 {[%clk 0:02:36]}  b6 {[%clk 0:02:42]} 10. e5 {[%clk 0:02:32]}  a5 {[%clk 0:02:03]} 11. a3 {[%clk 0:02:30]}  Ba6 {[%clk 0:02:03]} 12. d4 {[%clk 0:02:29]}  Rc8 {[%clk 0:02:02]} 13. Nf1 {[%clk 0:02:27]}  Nf5 {[%clk 0:01:43]} 14. g4 {[%clk 0:02:21]}  Nh4 {[%clk 0:01:35]} 15. Nxh4 {[%clk 0:02:11]}  Qxh4 {[%clk 0:01:36]} 16. h3 {[%clk 0:02:10]}  Bh6 {[%clk 0:01:00]} 17. Be3 {[%clk 0:02:03]}  Bxf1 {[%clk 0:00:51]} 18. Bxf1 {[%clk 0:01:57]}  Bxe3 {[%clk 0:00:50]} 19. fxe3 {[%clk 0:01:39]}  Ne7 {[%clk 0:00:41]} 20. Qf3 {[%clk 0:01:18]}  f5 {[%clk 0:00:36]} 21. exf6 {[%clk 0:01:12]}  Rxf6 {[%clk 0:00:36]} 22. Qg2 {[%clk 0:01:06]}  Rcf8 {[%clk 0:00:34]} 23. Re2 {[%clk 0:01:04]}  g5 {[%clk 0:00:22]} 24. Qh2 {[%clk 0:00:32]}  Rf3 {[%clk 0:00:14]} 25. Bg2 {[%clk 0:00:25]}  Rf2 {[%clk 0:00:13]} 26. Rae1 {[%clk 0:00:25]}  Ng6 {[%clk 0:00:12]} 27. Qc7 {[%clk 0:00:17]}  Rxe2 {[%clk 0:00:09]} 28. Rxe2 {[%clk 0:00:17]}  Qh6 {[%clk 0:00:09]} 29. Qxb6 {[%clk 0:00:16]}  Nh4 {[%clk 0:00:09]} 30. Bh1 {[%clk 0:00:13]}  Qf6 {[%clk 0:00:09]} 31. Kh2 {[%clk 0:00:09]}  Rf7 {[%clk 0:00:06]} 32. Qd8+ {[%clk 0:00:07]}  Qxd8 {[%clk 0:00:06]} 33. c4 {[%clk 0:00:06]}  Qf6 {[%clk 0:00:06]} 34. cxd5 {[%clk 0:00:06]}  Qf1 {[%clk 0:00:06]} 35. Rc2 {[%clk 0:00:06]}  Nf3+ {[%clk 0:00:06]} 36. Bxf3 {[%clk 0:00:06]}  Rxf3 {[%clk 0:00:07]} 37. Rg2 {[%clk 0:00:06]}  Rf2 {[%clk 0:00:07]} 38. Rxf2 {[%clk 0:00:06]}  Qxf2+ {[%clk 0:00:08]} 39. Kh1 {[%clk 0:00:07]}  exd5 {[%clk 0:00:08]} 40. dxc5 {[%clk 0:00:07]}  Qf3+ {[%clk 0:00:09]} 41. Kh2 {[%clk 0:00:06]}  Qxe3 {[%clk 0:00:09]} 0-1


[Site "https://www.chess.com"]

[Event "Titled Tuesday Blitz December 13 Early 2022"]
[White "Rangel, Daniel"]
[Black "Jiganchine, Roman"]
[WhiteFideId "2124475"]
[BlackFideId "2603667"]
[WhiteElo "2225"]
[BlackElo "2354"]
[Result "0-1"]
[Round "07"]
[TimeControl "180+1"]
[Date "2022.12.14"]
[WhiteClock "0:00:14"]
[BlackClock "0:00:03"]

1. d4 {[%clk 0:03:00]}  d5 {[%clk 0:02:59]} 2. c4 {[%clk 0:02:59]}  e6 {[%clk 0:02:58]} 3. Nc3 {[%clk 0:02:59]}  Nf6 {[%clk 0:02:58]} 4. Nf3 {[%clk 0:02:59]}  c5 {[%clk 0:02:57]} 5. cxd5 {[%clk 0:02:58]}  cxd4 {[%clk 0:02:57]} 6. Nxd4 {[%clk 0:02:57]}  Nxd5 {[%clk 0:02:56]} 7. Nxd5 {[%clk 0:02:55]}  Qxd5 {[%clk 0:02:54]} 8. e3 {[%clk 0:02:55]}  Bb4+ {[%clk 0:02:52]} 9. Bd2 {[%clk 0:02:54]}  Bxd2+ {[%clk 0:02:42]} 10. Qxd2 {[%clk 0:02:55]}  O-O {[%clk 0:02:42]} 11. Rc1 {[%clk 0:02:42]}  e5 {[%clk 0:02:40]} 12. Nb5 {[%clk 0:02:36]}  Qxd2+ {[%clk 0:02:22]} 13. Kxd2 {[%clk 0:02:37]}  Na6 {[%clk 0:02:17]} 14. Bd3 {[%clk 0:02:31]}  Rd8 {[%clk 0:02:10]} 15. Ke2 {[%clk 0:02:29]}  Be6 {[%clk 0:02:04]} 16. a3 {[%clk 0:02:23]}  Bd5 {[%clk 0:01:49]} 17. f3 {[%clk 0:02:12]}  Bc6 {[%clk 0:01:48]} 18. Rhd1 {[%clk 0:01:59]}  Rxd3 {[%clk 0:01:40]} 19. Kxd3 {[%clk 0:01:58]}  Bxb5+ {[%clk 0:01:40]} 20. Ke4 {[%clk 0:01:59]}  f6 {[%clk 0:01:27]} 21. Rd6 {[%clk 0:01:49]}  Re8 {[%clk 0:01:08]} 22. Kf5 {[%clk 0:01:38]}  Nb8 {[%clk 0:00:55]} 23. Rc7 {[%clk 0:01:30]}  Bc6 {[%clk 0:00:51]} 24. b4 {[%clk 0:01:08]}  Na6 {[%clk 0:00:39]} 25. Rdxc6 {[%clk 0:01:07]}  bxc6 {[%clk 0:00:35]} 26. Rxa7 {[%clk 0:00:59]}  Nb8 {[%clk 0:00:33]} 27. a4 {[%clk 0:00:54]}  Kf8 {[%clk 0:00:29]} 28. a5 {[%clk 0:00:53]}  c5 {[%clk 0:00:16]} 29. b5 {[%clk 0:00:47]}  Rc8 {[%clk 0:00:16]} 30. Ra8 {[%clk 0:00:35]}  g6+ {[%clk 0:00:11]} 31. Kxf6 {[%clk 0:00:21]}  Nd7+ {[%clk 0:00:10]} 32. Ke6 {[%clk 0:00:18]}  Rxa8 {[%clk 0:00:10]} 33. a6 {[%clk 0:00:14]}  Nb6 {[%clk 0:00:09]} 34. Kxe5 {[%clk 0:00:15]}  c4 {[%clk 0:00:09]} 35. Kd4 {[%clk 0:00:14]}  Rc8 {[%clk 0:00:08]} 36. Kc3 {[%clk 0:00:14]}  Ke7 {[%clk 0:00:08]} 37. Kb4 {[%clk 0:00:14]}  Kd6 {[%clk 0:00:08]} 38. Ka5 {[%clk 0:00:15]}  Kc7 {[%clk 0:00:08]} 39. Kb4 {[%clk 0:00:15]}  Rb8 {[%clk 0:00:08]} 40. e4 {[%clk 0:00:14]}  Ra8 {[%clk 0:00:08]} 41. f4 {[%clk 0:00:14]}  Kd6 {[%clk 0:00:08]} 42. e5+ {[%clk 0:00:15]}  Kd5 {[%clk 0:00:08]} 43. Kc3 {[%clk 0:00:15]}  Kc5 {[%clk 0:00:08]} 44. g4 {[%clk 0:00:16]}  Kxb5 {[%clk 0:00:08]} 45. f5 {[%clk 0:00:17]}  Rxa6 {[%clk 0:00:09]} 46. e6 {[%clk 0:00:15]}  Nd5+ {[%clk 0:00:09]} 47. Kd4 {[%clk 0:00:15]}  gxf5 {[%clk 0:00:09]} 48. gxf5 {[%clk 0:00:13]}  Nf6 {[%clk 0:00:08]} 49. Ke5 {[%clk 0:00:13]}  Ne8 {[%clk 0:00:08]} 50. Kd4 {[%clk 0:00:09]}  Nf6 {[%clk 0:00:08]} 51. Ke5 {[%clk 0:00:09]}  Ne8 {[%clk 0:00:08]} 52. Kd4 {[%clk 0:00:10]}  Kb4 {[%clk 0:00:08]} 53. Ke5 {[%clk 0:00:09]}  c3 {[%clk 0:00:08]} 54. f6 {[%clk 0:00:10]}  Nxf6 {[%clk 0:00:08]} 55. Kxf6 {[%clk 0:00:11]}  Rxe6+ {[%clk 0:00:08]} 56. Kxe6 {[%clk 0:00:12]}  c2 {[%clk 0:00:08]} 57. Kf6 {[%clk 0:00:13]}  c1=Q {[%clk 0:00:06]} 58. Kg7 {[%clk 0:00:14]}  Qd2 {[%clk 0:00:06]} 59. h4 {[%clk 0:00:13]}  Qf4 {[%clk 0:00:06]} 60. h5 {[%clk 0:00:12]}  h6 {[%clk 0:00:05]} 61. Kh7 {[%clk 0:00:11]}  Qg5 {[%clk 0:00:06]} 62. Kh8 {[%clk 0:00:12]}  Kc5 {[%clk 0:00:07]} 63. Kh7 {[%clk 0:00:13]}  Kd6 {[%clk 0:00:01]} 64. Kh8 {[%clk 0:00:13]}  Ke7 {[%clk 0:00:02]} 65. Kh7 {[%clk 0:00:14]}  Kf7 {[%clk 0:00:03]} 66. Kh8 {[%clk 0:00:14]}  Qg7# {[%clk 0:00:03]} 0-1


[Site "https://www.chess.com"]